[Event "Austrian Youth-ch U16 Boys 2024"]
[Site "Leibnitz"]
[Date "2024.03.26"]
[Round "5.3"]
[White "Stickler, Florentin"]
[Black "Standhartinger, Joachim"]
[Result "1-0"]
[ECO "C92"]
[WhiteElo "1885"]
[BlackElo "1930"]
[Annotator "NA RC"]
[PlyCount "155"]
[EventDate "2024.03.23"]
[EventType "swiss"]
[EventCountry "AUT"]
[SourceTitle "playchess.com"]
[Source "ChessBase"]
[SourceQuality "1"]
[TimeControl "5400+30"]

1. e4 {[%emt 0:00:01]} e5 {[%emt 0:00:16]} 2. Nf3 {[%emt 0:00:05]} Nc6 {[%emt 0:00:06]} 3. Bb5 {[%emt 0:00:03]} a6 {[%emt 0:00:08]} 4. Ba4 {[%emt 0:00:04]} Nf6 {[%emt 0:00:06]} 5. O-O {[%emt 0:00:04]} Be7 {[%emt 0:00:07]} 6. Re1 {[%emt 0:00:05]} b5 {[%emt 0:00:05]} 7. Bb3 {[%emt 0:00:03]} O-O {[%emt 0:00:59]} 8. d4 {[%emt 0:00:08]} d6 {[%emt 0:07:39]} 9. c3 {[%emt 0:00:48]} Re8 {[%emt 0:06:17]} 10. h3 {[%emt 0:02:24]} Bf8 {[%emt 0:00:43]} 11. Bd5 {[%emt 0:03:04]} Nxd5 {[%emt 0:11:08]} 12. exd5 {[%emt 0:00:09]} e4 {[%emt 0:00:58]} 13. Ng5 {[%emt 0:00:38]} h6 {[%emt 0:05:52]} 14. Nxf7 {[%emt 0:01:01]} Kxf7 {[%emt 0:01:59]} 15. dxc6 {[%emt 0:00:24]} d5 {[%emt 0:01:50]} 16. Bf4 {[%emt 0:01:08]} Re6 {[%emt 0:04:33]} 17. f3 {[%emt 0:01:58]} Rg6 {[%emt 0:17:07]} 18. Kf2 {[%emt 0:07:35]} Qh4+ {[%emt 0:05:35]} 19. g3 {[%emt 0:01:16]} Qxh3 {[%emt 0:00:47]} 20. Rh1 {[%emt 0:04:34]} Qf5 {[%emt 0:01:52]} 21. fxe4 {[%emt 0:00:46]} Qxe4 {[%emt 0:04:52]} 22. Re1 {[%emt 0:01:19]} Qf5 {[%emt 0:00:18]} 23. Re5 {[%emt 0:00:54]} Qh3 {[%emt 0:02:41]} 24. Rh5 {[%emt 0:01:12]} Bg4 {[%emt 0:04:25]} 25. Rxh3 {[%emt 0:00:19]} Bxd1 {[%emt 0:00:02]} 26. Bxc7 {[%emt 0:00:58]} Rxc6 {[%emt 0:00:37]} 27. Be5 {[%emt 0:00:09]} Be7 {[%emt 0:02:16]} 28. Nd2 {[%emt 0:01:18]} Bg4 {[%emt 0:00:57]} 29. Rhh1 {[%emt 0:00:48]} Bg5 {[%emt 0:04:42]} 30. Nf3 {[%emt 0:02:22]} Bxf3 {[%emt 0:02:56]} 31. Kxf3 {[%emt 0:00:06]} Kg6 {[%emt 0:01:44]} 32. Rhf1 {[%emt 0:00:50]} Rf8+ {[%emt 0:01:23]} 33. Kg2 {[%emt 0:00:44]} Rcc8 {[%emt 0:00:41]} 34. Rxf8 {[%emt 0:00:47]} Rxf8 {[%emt 0:00:08]} 35. a4 {[%emt 0:00:01]} Be3 {[%emt 0:01:52]} 36. axb5 {[%emt 0:00:48]} axb5 {[%emt 0:01:41]} 37. Ra6+ {[%emt 0:00:16]} Kh5 {[%emt 0:02:21]} 38. Bxg7 {[%emt 0:00:17]} Rf7 {[%emt 0:00:47]} 39. Bf6 {[%emt 0:00:58]} Bc1 {[%emt 0:02:05]} 40. Rb6 {[%emt 0:02:20]} Bxb2 {[%emt 0:02:05]} 41. Rxb5 {[%emt 0:00:07]} Rxf6 {[%emt 0:01:41]} 42. Rxb2 {[%emt 0:00:01]} Kg4 {[%emt 0:01:17]} 43. Rf2 {[%emt 0:00:56]} Rc6 {[%emt 0:00:30]} 44. Rf4+ {[%emt 0:02:09]} Kg5 {[%emt 0:00:13]} 45. Rf3 {[%emt 0:00:01]} Kg4 {[%emt 0:00:59]} 46. Re3 {[%emt 0:00:06]} Rc7 {[%emt 0:00:45]} 47. Kf2 {[%emt 0:00:10]} Ra7 {[%emt 0:01:20]} 48. Ke2 {[%emt 0:00:30]} h5 {[%emt 0:00:32]} 49. Kd3 {[%emt 0:00:50]} Rc7 {[%emt 0:00:29]} 50. Re5 {[%emt 0:00:11]} Rd7 {[%emt 0:00:28]} 51. Kc2 {[%emt 0:00:29]} Kxg3 {[%emt 0:00:19]} 52. Rxh5 {[%emt 0:00:06]} Kg4 {[%emt 0:00:33]} 53. Re5 {[%emt 0:00:06]} Kf4 {[%emt 0:00:13]} 54. Kb3 {[%emt 0:00:06]} Rb7+ {[%emt 0:00:39]} 55. Ka4 {[%emt 0:00:06]} Rc7 {[%emt 0:00:39]} 56. Kb4 {[%emt 0:00:25]} Rb7+ {[%emt 0:00:41]} 57. Kc5 {[%emt 0:00:22]} Rc7+ {[%emt 0:00:13]} 58. Kxd5 {[%emt 0:00:06]} Rxc3 {[%emt 0:00:06]} 59. Re8 {[%emt 0:01:45]} Kf5 {[%emt 0:00:55]} 60. Rf8+ {[%emt 0:01:43]} Kg6 {[%emt 0:00:01]} 61. Kd6 {[%emt 0:00:17]} Kg7 {[%emt 0:00:31]} 62. Rf1 {[%emt 0:00:12]} Rd3 {[%emt 0:00:27]} 63. d5 {[%emt 0:00:04]} Rd2 {[%emt 0:00:06]} 64. Kc6 {[%emt 0:00:09]} Rc2+ {[%emt 0:00:14]} 65. Kd7 {[%emt 0:00:03]} Rd2 {[%emt 0:00:06]} 66. d6 {[%emt 0:00:03]} Rd3 {[%emt 0:00:07]} 67. Ke7 {[%emt 0:00:05]} Re3+ {[%emt 0:00:09]} 68. Kd8 {[%emt 0:00:04]} Rd3 {[%emt 0:00:10]} 69. d7 {[%emt 0:00:04]} Rd2 {[%emt 0:00:09]} 70. Rf4 {[%emt 0:00:10]} Kg6 {[%emt 0:01:44]} 71. Ke7 {[%emt 0:01:59]} Re2+ {[%emt 0:00:10]} 72. Kd6 {[%emt 0:00:05]} Rd2+ {[%emt 0:00:05]} 73. Ke6 {[%emt 0:00:06]} Rd1 {[%emt 0:00:23]} 74. Rf8 {[%emt 0:00:18]} Re1+ {[%emt 0:00:31]} 75. Kd6 {[%emt 0:00:05]} Rd1+ {[%emt 0:00:12]} 76. Kc6 {[%emt 0:00:04]} Rc1+ {[%emt 0:00:11]} 77. Kb5 {[%emt 0:00:02]} Rb1+ {[%emt 0:00:19]} 78. Ka4 {[%emt 0:00:06]} 1-0

[Event "Austrian Youth-ch U16 Boys 2024"]
[Site "Leibnitz"]
[Date "2024.03.26"]
[Round "5.4"]
[White "Raber, Eduard"]
[Black "Maier, Tobias"]
[Result "0-1"]
[ECO "D51"]
[WhiteElo "1768"]
[BlackElo "1893"]
[Annotator "NA RC"]
[PlyCount "74"]
[EventDate "2024.03.23"]
[EventType "swiss"]
[EventCountry "AUT"]
[SourceTitle "playchess.com"]
[Source "ChessBase"]
[SourceQuality "1"]
[TimeControl "5400+30"]

1. d4 {[%emt 0:00:03]} Nf6 {[%emt 0:00:03]} 2. c4 {[%emt 0:00:09]} e6 {[%emt 0:00:03]} 3. Nf3 {[%emt 0:00:17]} d5 {[%emt 0:00:06]} 4. Bg5 {[%emt 0:00:25]} h6 {[%emt 0:01:18]} 5. Bh4 {[%emt 0:00:26]} c6 {[%emt 0:06:32]} 6. Nc3 {[%emt 0:00:14]} Nbd7 {[%emt 0:00:04]} 7. e3 {[%emt 0:00:12]} Bd6 {[%emt 0:01:06]} 8. c5 {[%emt 0:01:49]} Bc7 {[%emt 0:00:12]} 9. Be2 {[%emt 0:01:04]} O-O {[%emt 0:02:06]} 10. O-O {[%emt 0:00:28]} Re8 {[%emt 0:00:44]} 11. b4 {[%emt 0:01:04]} a6 {[%emt 0:01:24]} 12. a4 {[%emt 0:00:16]} e5 {[%emt 0:00:57]} 13. b5 {[%emt 0:00:50]} exd4 {[%emt 0:28:38]} 14. exd4 {[%emt 0:02:10]} Nf8 {[%emt 0:02:13]} 15. b6 {[%emt 0:02:49]} Bb8 {[%emt 0:00:35]} 16. Bd3 {[%emt 0:06:44]} Bg4 {[%emt 0:01:33]} 17. h3 {[%emt 0:00:44]} Bh5 {[%emt 0:00:43]} 18. Be2 {[%emt 0:11:26]} Ne6 {[%emt 0:12:06]} 19. Ne5 {[%emt 0:15:53]} Bxe2 {[%emt 0:02:08]} 20. Nxe2 {[%emt 0:02:12]} Nxd4 {[%emt 0:06:31]} 21. Nxf7 {[%emt 0:09:05]} Nxe2+ {[%emt 0:00:35]} 22. Qxe2 {[%emt 0:00:28]} Kxf7 {[%emt 0:00:07]} 23. Qd3 {[%emt 0:03:00]} Qe7 {[%emt 0:01:01]} 24. g4 {[%emt 0:10:53]} Qe5 {[%emt 0:06:53]} 25. Bg3 {[%emt 0:09:47]} Qe4 {[%emt 0:00:43]} 26. Qc3 {[%emt 0:04:05]} Bxg3 {[%emt 0:00:56]} 27. Qxg3 {[%emt 0:00:11]} Qe5 {[%emt 0:01:08]} 28. Qf3 {[%emt 0:00:49]} d4 {[%emt 0:03:49]} 29. Rac1 {[%emt 0:01:15]} Rad8 {[%emt 0:01:15]} 30. Rfd1 {[%emt 0:01:36]} Kg8 {[%emt 0:01:49]} 31. Qb3+ {[%emt 0:01:04]} Kh8 {[%emt 0:00:21]} 32. Rd3 {[%emt 0:01:49]} Rd5 {[%emt 0:02:32]} 33. Qc4 {[%emt 0:01:26]} Qf4 {[%emt 0:01:29]} 34. Rcd1 {[%emt 0:01:19]} Ne4 {[%emt 0:00:43]} 35. Rf1 {[%emt 0:02:08]} Nd2 {[%emt 0:01:15]} 36. Qc1 {[%emt 0:02:24]} Nf3+ {[%emt 0:00:28]} 37. Rxf3 {[%emt 0:00:14]} Qxf3 {[%emt 0:00:07]} 0-1

[Event "Austrian Youth-ch U16 Boys 2024"]
[Site "Leibnitz"]
[Date "2024.03.26"]
[Round "5.5"]
[White "Wu, Chenshan"]
[Black "Guba, Viktor"]
[Result "1-0"]
[ECO "A52"]
[WhiteElo "1815"]
[BlackElo "1892"]
[Annotator "NA RC"]
[PlyCount "103"]
[EventDate "2024.03.23"]
[EventType "swiss"]
[EventCountry "AUT"]
[SourceTitle "playchess.com"]
[Source "ChessBase"]
[SourceQuality "1"]
[TimeControl "5400+30"]

1. d4 {[%emt 0:00:02]} Nf6 {[%emt 0:00:13]} 2. c4 {[%emt 0:00:05]} e5 {[%emt 0:00:35]} 3. dxe5 {[%emt 0:00:31]} Ng4 {[%emt 0:00:07]} 4. Bf4 {[%emt 0:01:37]} Nc6 {[%emt 0:01:09]} 5. Nf3 {[%emt 0:00:38]} Bc5 {[%emt 0:00:56]} 6. e3 {[%emt 0:00:59]} Qe7 {[%emt 0:00:44]} 7. Nc3 {[%emt 0:01:40]} Bb4 {[%emt 0:05:09]} 8. Qc2 {[%emt 0:03:19]} Ngxe5 {[%emt 0:01:50]} 9. Nxe5 {[%emt 0:04:44]} Nxe5 {[%emt 0:00:08]} 10. a3 {[%emt 0:01:07]} Bxc3+ {[%emt 0:02:38]} 11. Qxc3 {[%emt 0:00:07]} f6 {[%emt 0:02:43]} 12. Be2 {[%emt 0:02:34]} d6 {[%emt 0:02:53]} 13. O-O {[%emt 0:01:57]} Bd7 {[%emt 0:03:43]} 14. Rac1 {[%emt 0:01:17]} O-O {[%emt 0:09:27]} 15. Rfd1 {[%emt 0:02:45]} b6 {[%emt 0:01:39]} 16. b4 {[%emt 0:02:44]} Rfe8 {[%emt 0:04:47]} 17. c5 {[%emt 0:05:44]} bxc5 {[%emt 0:02:38]} 18. bxc5 {[%emt 0:00:23]} Be6 {[%emt 0:04:44]} 19. cxd6 {[%emt 0:03:53]} cxd6 {[%emt 0:00:05]} 20. e4 {[%emt 0:05:54]} Rac8 {[%emt 0:04:39]} 21. Qb4 {[%emt 0:04:16]} Rxc1 {[%emt 0:01:41]} 22. Bxc1 {[%emt 0:00:46]} Rd8 {[%emt 0:03:23]} 23. a4 {[%emt 0:07:35]} Qc7 {[%emt 0:01:25]} 24. Ba3 {[%emt 0:04:25]} Nf7 {[%emt 0:06:21]} 25. f4 {[%emt 0:07:58]} a5 {[%emt 0:01:55]} 26. Qd4 {[%emt 0:11:34]} d5 {[%emt 0:03:36]} 27. exd5 {[%emt 0:02:04]} Rxd5 {[%emt 0:00:39]} 28. Qe3 {[%emt 0:01:05]} Rxd1+ {[%emt 0:02:14]} 29. Bxd1 {[%emt 0:00:05]} Qd7 {[%emt 0:00:56]} 30. Bc2 {[%emt 0:01:22]} Nh6 {[%emt 0:00:38]} 31. Qe4 {[%emt 0:03:52]} Bf5 {[%emt 0:01:02]} 32. Bb3+ {[%emt 0:00:49]} Nf7 {[%emt 0:00:43]} 33. Qa8+ {[%emt 0:00:52]} Qc8 {[%emt 0:00:05]} 34. Qxc8+ {[%emt 0:00:14]} Bxc8 {[%emt 0:00:05]} 35. Bc5 {[%emt 0:00:12]} g6 {[%emt 0:00:17]} 36. Bb6 {[%emt 0:00:21]} Kf8 {[%emt 0:00:05]} 37. Bxa5 {[%emt 0:00:11]} Nd6 {[%emt 0:00:30]} 38. Bb4 {[%emt 0:00:08]} Ke7 {[%emt 0:00:04]} 39. Kf2 {[%emt 0:01:19]} Kd7 {[%emt 0:00:06]} 40. Ke3 {[%emt 0:01:23]} Bb7 {[%emt 0:00:50]} 41. g3 {[%emt 0:00:56]} g5 {[%emt 0:00:24]} 42. Bxd6 {[%emt 0:02:25]} Kxd6 {[%emt 0:00:07]} 43. fxg5 {[%emt 0:16:08]} fxg5 {[%emt 0:00:06]} 44. Bc2 {[%emt 0:00:00]} h6 {[%emt 0:00:32]} 45. Be4 {[%emt 0:00:00]} Ba6 {[%emt 0:00:05]} 46. Kf3 {[%emt 0:00:00]} Ke5 {[%emt 0:00:09]} 47. Bc6 {[%emt 0:00:00]} Kf5 {[%emt 0:00:58]} 48. Bb5 {[%emt 0:00:00]} Bb7+ {[%emt 0:00:07]} 49. Kf2 {[%emt 0:00:00]} h5 {[%emt 0:00:29]} 50. a5 {[%emt 0:00:00]} h4 {[%emt 0:00:15]} 51. a6 {[%emt 0:00:00]} Ba8 {[%emt 0:00:35]} 52. Bd7+ {[%emt 0:00:00]} 1-0

[Event "Austrian Youth-ch U16 Boys 2024"]
[Site "Leibnitz"]
[Date "2024.03.26"]
[Round "5.7"]
[White "Schramml, Fabian"]
[Black "Jetzl, Julian"]
[Result "0-1"]
[ECO "B90"]
[WhiteElo "1894"]
[BlackElo "1998"]
[Annotator "RC"]
[PlyCount "85"]
[EventDate "2024.03.23"]
[EventType "swiss"]
[EventCountry "AUT"]
[SourceTitle "playchess.com"]
[Source "ChessBase"]
[SourceQuality "1"]
[TimeControl "5400+30"]

1. e4 {[%emt 0:00:02]} c5 {[%emt 0:00:14]} 2. Nf3 {[%emt 0:00:06]} d6 {[%emt 0:00:13]} 3. d4 {[%emt 0:00:06]} cxd4 {[%emt 0:00:23]} 4. Nxd4 {[%emt 0:00:06]} Nf6 {[%emt 0:00:10]} 5. Nc3 {[%emt 0:00:04]} a6 {[%emt 0:00:07]} 6. h3 {[%emt 0:00:04]} e5 {[%emt 0:00:39]} 7. Nf3 {[%emt 0:00:05]} Be7 {[%emt 0:08:12]} 8. g4 {[%emt 0:00:08]} Be6 {[%emt 0:00:51]} 9. g5 {[%emt 0:00:45]} Nfd7 {[%emt 0:00:52]} 10. h4 {[%emt 0:00:37]} b5 {[%emt 0:14:07]} 11. a4 {[%emt 0:04:00]} b4 {[%emt 0:03:20]} 12. Nd5 {[%emt 0:00:13]} Nc5 {[%emt 0:07:50]} 13. Be3 {[%emt 0:06:35]} Nbd7 {[%emt 0:04:23]} 14. Nxb4 {[%emt 0:09:03]} Nxe4 {[%emt 0:05:29]} 15. Nc6 {[%emt 0:01:41]} Qc7 {[%emt 0:01:07]} 16. Nxe7 {[%emt 0:00:25]} Kxe7 {[%emt 0:00:05]} 17. Nd2 {[%emt 0:11:24]} Nxd2 {[%emt 0:07:53]} 18. Qxd2 {[%emt 0:00:17]} Rhd8 {[%emt 0:09:44]} 19. Bg2 {[%emt 0:04:31]} Rac8 {[%emt 0:02:11]} 20. Rc1 {[%emt 0:08:31]} a5 {[%emt 0:07:14]} 21. b3 {[%emt 0:02:33]} Nc5 {[%emt 0:01:18]} 22. f4 {[%emt 0:07:53]} d5 {[%emt 0:06:07]} 23. fxe5 {[%emt 0:00:39]} Ne4 {[%emt 0:06:26]} 24. Bxe4 {[%emt 0:11:05]} dxe4 {[%emt 0:00:11]} 25. Bd4 {[%emt 0:00:29]} Bxb3 {[%emt 0:04:01]} 26. c3 {[%emt 0:02:59]} Qc4 {[%emt 0:04:13]} 27. Kf2 {[%emt 0:01:21]} Bxa4 {[%emt 0:00:57]} 28. Rhe1 {[%emt 0:02:13]} Bc6 {[%emt 0:01:19]} 29. Ra1 {[%emt 0:02:22]} a4 {[%emt 0:00:27]} 30. Ra3 {[%emt 0:01:29]} Kf8 {[%emt 0:00:42]} 31. Rb1 {[%emt 0:00:59]} Rb8 {[%emt 0:00:24]} 32. Rxb8 {[%emt 0:01:31]} Rxb8 {[%emt 0:00:08]} 33. Kg3 {[%emt 0:03:13]} Kg8 {[%emt 0:01:43]} 34. Ba7 {[%emt 0:01:19]} Re8 {[%emt 0:00:35]} 35. Qd4 {[%emt 0:00:30]} Qf1 {[%emt 0:01:13]} 36. c4 {[%emt 0:00:55]} e3 {[%emt 0:02:15]} 37. Qxe3 {[%emt 0:01:14]} Qxc4 {[%emt 0:00:20]} 38. Qc3 {[%emt 0:00:45]} Qd5 {[%emt 0:00:37]} 39. Bd4 {[%emt 0:00:41]} Rd8 {[%emt 0:00:24]} 40. Bb6 {[%emt 0:01:07]} Qg2+ {[%emt 0:00:07]} 41. Kf4 {[%emt 0:00:08]} Rd1 {[%emt 0:00:22]} 42. Qg3 {[%emt 0:02:41]} Rf1+ {[%emt 0:00:15]} 43. Kg4 {[%emt 0:00:17]} 0-1

[Event "Austrian Youth-ch U16 Boys 2024"]
[Site "Leibnitz"]
[Date "2024.03.26"]
[Round "5.8"]
[White "Squasi, Ernesto"]
[Black "Gschwandtl, Alexander"]
[Result "0-1"]
[ECO "C82"]
[WhiteElo "1743"]
[BlackElo "1997"]
[Annotator "NA RC"]
[PlyCount "32"]
[EventDate "2024.03.23"]
[EventType "swiss"]
[EventCountry "AUT"]
[SourceTitle "playchess.com"]
[Source "ChessBase"]
[SourceQuality "1"]
[TimeControl "5400+30"]

1. e4 {[%emt 0:00:02]} e5 {[%emt 0:00:10]} 2. Nf3 {[%emt 0:00:04]} Nc6 {[%emt 0:00:04]} 3. Bb5 {[%emt 0:00:05]} a6 {[%emt 0:00:03]} 4. Ba4 {[%emt 0:00:09]} Nf6 {[%emt 0:00:04]} 5. O-O {[%emt 0:00:05]} Nxe4 {[%emt 0:00:05]} 6. d4 {[%emt 0:01:04]} b5 {[%emt 0:00:22]} 7. Bb3 {[%emt 0:00:12]} d5 {[%emt 0:00:04]} 8. dxe5 {[%emt 0:07:05]} Be6 {[%emt 0:00:41]} 9. c3 {[%emt 0:03:25]} Bc5 {[%emt 0:00:32]} 10. Bf4 {[%emt 0:04:19]} g5 {[%emt 0:02:50]} 11. Nxg5 {[%emt 0:25:17]} Nxg5 {[%emt 0:01:30]} 12. Bxg5 {[%emt 0:00:05]} Qxg5 {[%emt 0:00:03]} 13. Bxd5 {[%emt 0:00:07]} O-O-O {[%emt 0:01:50]} 14. Bxe6+ {[%emt 0:01:27]} fxe6 {[%emt 0:00:39]} 15. Qf3 {[%emt 0:00:09]} Kb7 {[%emt 0:07:16]} 16. a4 {[%emt 0:03:39]} Rhf8 {[%emt 0:01:24]} 0-1

[Event "Austrian Youth-ch U16 Boys 2024"]
[Site "Leibnitz"]
[Date "2024.03.27"]
[Round "6.1"]
[White "Maier, Tobias"]
[Black "Leitgeb, Julian"]
[Result "0-1"]
[ECO "B48"]
[WhiteElo "1893"]
[BlackElo "2130"]
[Annotator "RC"]
[PlyCount "82"]
[EventDate "2024.03.23"]
[EventType "swiss"]
[EventCountry "AUT"]
[SourceTitle "playchess.com"]
[Source "ChessBase"]
[SourceQuality "1"]
[TimeControl "5400+30"]

1. e4 {[%emt 0:00:02]} c5 {[%emt 0:00:01]} 2. Nf3 {[%emt 0:00:06]} Nc6 {[%emt 0:00:04]} 3. d4 {[%emt 0:00:04]} cxd4 {[%emt 0:00:02]} 4. Nxd4 {[%emt 0:00:06]} e6 {[%emt 0:00:13]} 5. Nc3 {[%emt 0:00:07]} Qc7 {[%emt 0:00:05]} 6. Be3 {[%emt 0:00:09]} a6 {[%emt 0:00:01]} 7. Qf3 {[%emt 0:03:02]} b5 {[%emt 0:00:23]} 8. Nxc6 {[%emt 0:25:23]} Qxc6 {[%emt 0:00:19]} 9. Bd3 {[%emt 0:00:46]} b4 {[%emt 0:00:19]} 10. Ne2 {[%emt 0:00:11]} Nf6 {[%emt 0:00:26]} 11. O-O {[%emt 0:09:17]} Bb7 {[%emt 0:08:50]} 12. Nd4 {[%emt 0:01:06]} Qc7 {[%emt 0:00:13]} 13. Rac1 {[%emt 0:13:45]} d5 {[%emt 0:08:39]} 14. exd5 {[%emt 0:07:23]} Bxd5 {[%emt 0:02:58]} 15. Qh3 {[%emt 0:09:15]} Bd6 {[%emt 0:06:55]} 16. c3 {[%emt 0:04:20]} bxc3 {[%emt 0:01:43]} 17. Rxc3 {[%emt 0:00:57]} Qb7 {[%emt 0:02:35]} 18. b3 {[%emt 0:04:47]} Be5 {[%emt 0:09:36]} 19. Rfc1 {[%emt 0:06:02]} O-O {[%emt 0:09:55]} 20. Bg5 {[%emt 0:08:24]} Ne4 {[%emt 0:02:53]} 21. Bxe4 {[%emt 0:04:43]} Bxe4 {[%emt 0:00:03]} 22. Be3 {[%emt 0:00:20]} Rfd8 {[%emt 0:01:27]} 23. f3 {[%emt 0:01:09]} Bxd4 {[%emt 0:07:40]} 24. Bxd4 {[%emt 0:00:13]} Rxd4 {[%emt 0:00:52]} 25. fxe4 {[%emt 0:00:06]} Qxe4 {[%emt 0:00:38]} 26. Rc7 {[%emt 0:00:51]} Rad8 {[%emt 0:00:20]} 27. Rc8 {[%emt 0:00:49]} h6 {[%emt 0:02:30]} 28. Rxd8+ {[%emt 0:00:35]} Rxd8 {[%emt 0:00:02]} 29. Qc3 {[%emt 0:00:22]} Qe2 {[%emt 0:00:58]} 30. a3 {[%emt 0:00:33]} Rd2 {[%emt 0:00:30]} 31. Qc8+ {[%emt 0:00:34]} Kh7 {[%emt 0:00:02]} 32. Qc6 {[%emt 0:00:22]} f5 {[%emt 0:01:20]} 33. b4 {[%emt 0:00:34]} e5 {[%emt 0:01:12]} 34. Qf3 {[%emt 0:00:35]} Qxf3 {[%emt 0:01:11]} 35. gxf3 {[%emt 0:00:06]} Kg6 {[%emt 0:02:11]} 36. Rc6+ {[%emt 0:00:40]} Kg5 {[%emt 0:00:02]} 37. Rxa6 {[%emt 0:00:28]} Kf4 {[%emt 0:00:03]} 38. b5 {[%emt 0:00:25]} Kxf3 {[%emt 0:00:06]} 39. h4 {[%emt 0:00:23]} e4 {[%emt 0:00:09]} 40. b6 {[%emt 0:00:54]} Rb2 {[%emt 0:00:07]} 41. Ra5 {[%emt 0:00:27]} f4 {[%emt 0:00:13]} 0-1

[Event "Austrian Youth-ch U16 Boys 2024"]
[Site "Leibnitz"]
[Date "2024.03.27"]
[Round "6.2"]
[White "Stickler, Florentin"]
[Black "Nguyen, Le Minh Phu"]
[Result "0-1"]
[ECO "B50"]
[WhiteElo "1885"]
[BlackElo "2218"]
[Annotator "RC"]
[PlyCount "58"]
[EventDate "2024.03.23"]
[EventType "swiss"]
[EventCountry "AUT"]
[SourceTitle "playchess.com"]
[Source "ChessBase"]
[SourceQuality "1"]
[TimeControl "5400+30"]

1. e4 {[%emt 0:00:03]} c5 {[%emt 0:00:05]} 2. Nf3 {[%emt 0:00:04]} d6 {[%emt 0:00:04]} 3. c3 {[%emt 0:00:03]} Nf6 {[%emt 0:01:19]} 4. h3 {[%emt 0:00:05]} g6 {[%emt 0:00:17]} 5. Bd3 {[%emt 0:00:13]} Bg7 {[%emt 0:00:15]} 6. Bc2 {[%emt 0:00:06]} O-O {[%emt 0:01:04]} 7. O-O {[%emt 0:00:19]} Nc6 {[%emt 0:02:16]} 8. d4 {[%emt 0:00:08]} cxd4 {[%emt 0:00:21]} 9. cxd4 {[%emt 0:00:06]} Nb4 {[%emt 0:00:20]} 10. Bb3 {[%emt 0:00:04]} Bd7 {[%emt 0:01:42]} 11. a3 {[%emt 0:00:30]} Nc6 {[%emt 0:00:12]} 12. Nc3 {[%emt 0:01:14]} Rc8 {[%emt 0:01:22]} 13. Re1 {[%emt 0:02:42]} Ne8 {[%emt 0:13:26]} 14. Be3 {[%emt 0:08:07]} Na5 {[%emt 0:01:02]} 15. Ba2 {[%emt 0:00:44]} a6 {[%emt 0:02:10]} 16. Rc1 {[%emt 0:03:15]} b5 {[%emt 0:03:54]} 17. Nd2 {[%emt 0:01:58]} e6 {[%emt 0:10:44]} 18. b4 {[%emt 0:02:28]} Nc6 {[%emt 0:00:11]} 19. Nf3 {[%emt 0:03:36]} h6 {[%emt 0:04:15]} 20. d5 {[%emt 0:04:27]} Nxb4 {[%emt 0:11:59]} 21. axb4 {[%emt 0:01:09]} Bxc3 {[%emt 0:00:10]} 22. Rxc3 {[%emt 0:01:24]} Rxc3 {[%emt 0:00:27]} 23. Bxh6 {[%emt 0:00:07]} e5 {[%emt 0:12:00]} 24. Bxf8 {[%emt 0:02:10]} Kxf8 {[%emt 0:00:05]} 25. Qd2 {[%emt 0:00:08]} Qc8 {[%emt 0:01:00]} 26. Qh6+ {[%emt 0:00:49]} Kg8 {[%emt 0:02:17]} 27. Ng5 {[%emt 0:00:34]} Nf6 {[%emt 0:00:05]} 28. f4 {[%emt 0:00:47]} Rg3 {[%emt 0:07:00]} 29. fxe5 {[%emt 0:00:29]} Qc2 {[%emt 0:00:18]} 0-1

[Event "Austrian Youth-ch U16 Boys 2024"]
[Site "Leibnitz"]
[Date "2024.03.27"]
[Round "6.3"]
[White "Gruenwald, Simon"]
[Black "Wu, Chenshan"]
[Result "0-1"]
[ECO "C42"]
[WhiteElo "2117"]
[BlackElo "1815"]
[Annotator "RC"]
[PlyCount "110"]
[EventDate "2024.03.23"]
[EventType "swiss"]
[EventCountry "AUT"]
[SourceTitle "playchess.com"]
[Source "ChessBase"]
[SourceQuality "1"]
[TimeControl "5400+30"]

1. e4 {[%emt 0:00:23]} e5 {[%emt 0:00:04]} 2. Nf3 {[%emt 0:00:11]} Nf6 {[%emt 0:00:03]} 3. Nxe5 {[%emt 0:00:07]} d6 {[%emt 0:00:06]} 4. Nf3 {[%emt 0:00:03]} Nxe4 {[%emt 0:00:06]} 5. d4 {[%emt 0:00:02]} d5 {[%emt 0:00:20]} 6. Bd3 {[%emt 0:00:01]} Bd6 {[%emt 0:00:15]} 7. O-O {[%emt 0:00:02]} O-O {[%emt 0:00:16]} 8. c4 {[%emt 0:00:01]} c6 {[%emt 0:01:19]} 9. Qc2 {[%emt 0:00:11]} Nf6 {[%emt 0:06:43]} 10. Bg5 {[%emt 0:09:08]} h6 {[%emt 0:03:10]} 11. Bh4 {[%emt 0:00:30]} Be6 {[%emt 0:05:40]} 12. c5 {[%emt 0:02:50]} Be7 {[%emt 0:01:42]} 13. Ne5 {[%emt 0:01:10]} Nbd7 {[%emt 0:00:43]} 14. f4 {[%emt 0:00:46]} Nxe5 {[%emt 0:17:56]} 15. dxe5 {[%emt 0:06:08]} Ne4 {[%emt 0:02:53]} 16. Bxe7 {[%emt 0:04:45]} Qxe7 {[%emt 0:00:03]} 17. b4 {[%emt 0:02:24]} f5 {[%emt 0:07:00]} 18. exf6 {[%emt 0:06:37]} Qxf6 {[%emt 0:01:39]} 19. Na3 {[%emt 0:43:56]} Qd4+ {[%emt 0:09:05]} 20. Kh1 {[%emt 0:11:22]} Qxb4 {[%emt 0:03:08]} 21. Qb3 {[%emt 0:09:49]} Qxb3 {[%emt 0:00:41]} 22. axb3 {[%emt 0:00:16]} Nxc5 {[%emt 0:00:34]} 23. Bc2 {[%emt 0:00:25]} Bf5 {[%emt 0:00:49]} 24. Bxf5 {[%emt 0:00:44]} Rxf5 {[%emt 0:00:07]} 25. g4 {[%emt 0:00:05]} Rf7 {[%emt 0:00:12]} 26. b4 {[%emt 0:00:07]} Nd3 {[%emt 0:00:15]} 27. f5 {[%emt 0:00:01]} Nxb4 {[%emt 0:00:13]} 28. h4 {[%emt 0:00:06]} Re8 {[%emt 0:00:20]} 29. Rae1 {[%emt 0:00:36]} Rfe7 {[%emt 0:00:17]} 30. Rxe7 {[%emt 0:00:02]} Rxe7 {[%emt 0:00:06]} 31. g5 {[%emt 0:00:06]} Re4 {[%emt 0:00:23]} 32. g6 {[%emt 0:00:34]} Rxh4+ {[%emt 0:00:06]} 33. Kg2 {[%emt 0:00:01]} Kf8 {[%emt 0:00:31]} 34. f6 {[%emt 0:00:28]} Rg4+ {[%emt 0:00:06]} 35. Kh3 {[%emt 0:00:01]} Rxg6 {[%emt 0:00:08]} 36. fxg7+ {[%emt 0:00:35]} Kxg7 {[%emt 0:00:05]} 37. Rb1 {[%emt 0:00:03]} a5 {[%emt 0:00:14]} 38. Re1 {[%emt 0:00:16]} Kf7 {[%emt 0:00:22]} 39. Kh4 {[%emt 0:00:28]} b5 {[%emt 0:42:20]} 40. Kh5 {[%emt 0:00:02]} Re6 {[%emt 0:00:00]} 41. Rf1+ {[%emt 0:00:10]} Rf6 {[%emt 0:00:00]} 42. Rc1 {[%emt 0:00:19]} d4 {[%emt 0:00:00]} 43. Rc5 {[%emt 0:00:26]} d3 {[%emt 0:00:00]} 44. Nb1 {[%emt 0:00:07]} a4 {[%emt 0:00:00]} 45. Nc3 {[%emt 0:00:09]} d2 {[%emt 0:00:00]} 46. Re5 {[%emt 0:00:07]} a3 {[%emt 0:00:00]} 47. Re2 {[%emt 0:00:21]} Rd6 {[%emt 0:00:00]} 48. Rf2+ {[%emt 0:00:01]} Kg7 {[%emt 0:00:00]} 49. Rg2+ {[%emt 0:00:07]} Kh7 {[%emt 0:00:00]} 50. Rg1 {[%emt 0:00:10]} a2 {[%emt 0:00:00]} 51. Ra1 {[%emt 0:00:09]} Rd3 {[%emt 0:00:00]} 52. Nd1 {[%emt 0:00:10]} Ra3 {[%emt 0:00:00]} 53. Nb2 {[%emt 0:00:23]} Nc2 {[%emt 0:00:00]} 54. Na4 {[%emt 0:00:14]} Rxa4 {[%emt 0:00:00]} 55. Re1 {[%emt 0:00:12]} Rh4+ {[%emt 0:00:00]} 0-1